Cogmind - Beta 13 @@@ ROGUE MODE // 2024.04.28 @ 09:19:24 Player: BrainTooSmol Result: Destroyed by as-17638 with Assembled Blade Performance ------------- Evolutions (0) 0 Regions Visited (2) 400 Robots Destroyed (20) 100 Value Destroyed (513) 513 Prototype IDs (0) 0 Alien Tech Used (0) 0 Bonus (0) 0 TOTAL SCORE: 1013 Bonus ------- None Cogmind --------- Core Integrity 0/250 Matter 299/300 Energy 100/100 System Corruption 2% Temperature Cool (0) Movement Core (350) Ox6 Location -10/Mines Parts ------- > --- POWER (1) -------- (None) > --- PROPULSION (2) --- (None) > --- UTILITY (2) ------ Large Storage Unit > --- WEAPON (2) ------- Light Assault Rifle > --- INVENTORY (15) --- Light Ion Engine Light Treads Wheel Wheel Small Storage Unit Seismic Detector Targeting Computer Targeting Computer Light Armor Plating Light Armor Plating Hacking Suite Grenade Launcher Peak State ------------ > --- POWER ------------ Light Ion Engine > --- PROPULSION ------- Light Treads Light Treads > --- UTILITY ---------- Large Storage Unit Light Armor Plating > --- WEAPON ----------- Medium Laser Light Assault Rifle > --- INVENTORY -------- Light Ion Engine Light Treads Wheel Wheel Small Storage Unit Seismic Detector Light Armor Plating Light Armor Plating Hacking Suite Grenade Launcher [Rating: 8] Favorites ----------- Power Light Ion Engine Engine Light Ion Engine Propulsion Light Treads Treads Light Treads Leg Aluminum Leg Utility Light Armor Plating Device Seismic Detector Storage Small Storage Unit Protection Light Armor Plating Weapon Medium Laser Energy Gun Medium Laser Ballistic Gun Light Assault Rifle Build | -11 -10 -10 ------- Run | Yrd Mat Min Slots Evolved . | . . . Power . | . . . Propulsion . | . . . Utility . | . . . Weapon . | . . . Parts Attached 11 | 1 10 . Power . | . . . Engine . | . . . Core . | . . . Reactor . | . . . Propulsion 3 | . 3 . Treads 3 | . 3 . Leg . | . . . Wheel . | . . . Hover . | . . . Flight . | . . . Utility 5 | 1 4 . Device 1 | 1 . . Storage 1 | . 1 . Processor . | . . . Hackware . | . . . Protection 3 | . 3 . Artifact . | . . . Weapon 3 | . 3 . Energy Gun 2 | . 2 . Energy Cannon . | . . . Ballistic Gun 1 | . 1 . Ballistic Cannon . | . . . Launcher . | . . . Special Weapon . | . . . Impact Weapon . | . . . Slashing Weapon . | . . . Piercing Weapon . | . . . Special Melee Weapon . | . . . Unidentified Prototypes . | . . . Parts Lost 6 | . 1 5 Power 1 | . . 1 Propulsion 2 | . . 2 Utility 1 | . . 1 Weapon 2 | . 1 1 Highest Loss Streak 3 | . 1 3 To Critical Strikes . | . . . Average Slot Usage (%) 98 | . 99 82 Engine 13 | . 14 3 Treads 21 | . 21 22 Leg 5 | . 6 . Device 2 | . 3 . Storage 14 | . 14 14 Protection 10 | . 10 12 Energy Gun 13 | . 13 14 Ballistic Gun 14 | . 14 14 Naked Turns . | . . . Heaviest Build 29 | 13 29 29 Greatest Support 40 | 20 40 40 Greatest Overweight (x) 1 | . . 1 Average Overweight (x) . | . . . Largest Inventory Capacity 15 | 8 15 15 Average Capacity 9 | 8 9 15 Most Carried 12 | 8 12 12 Average Carried 8 | 6 8 12 Final Capacity 15 | 8 15 15 Final Carried 12 | 7 12 12 Class Distribution -------------------- 100% | Mutant Dominant Class ---------------- Mutant | -10/Materials Mutant | -10/Mines Resources | -11 -10 -10 ----------- Run | Yrd Mat Min Matter Collected 452 | 219 225 8 Remotely . | . . . Salvage Created 748 | 26 601 121 Parts 44 | 7 33 4 Haulers Intercepted 1 | . 1 . Recyclers Shooed . | . . . Parts Field Recycled . | . . . Retrieved Matter . | . . . Parts Self-Destructed . | . . . Prevented . | . . . Kills | -11 -10 -10 ------- Run | Yrd Mat Min Combat Hostiles Destroyed 20 | . 11 9 Guns 18 | . 9 9 Classes Destroyed 7 | 1 4 2 Tunneler 2 | 2 . . Hauler 1 | . 1 . Operator 2 | . 2 . Watcher 2 | . 2 . Swarmer 2 | . . 2 Grunt 11 | . 11 . Assembled 7 | . . 7 Best Kill Streak 5 | 1 3 5 Combat Bots Only 5 | . 2 5 Max Kills in Single Turn 1 | 1 1 1 Gunslinging . | . . . Exploded . | . . . Melee . | . . . Uniques/NPCs Destroyed . | . . . Combat | -11 -10 -10 -------- Run | Yrd Mat Min Hostile Shots Fired 98 | . 62 36 Missed 18 | . 13 5 Damage Taken 1268 | . 623 645 Core 277 | . 121 156 Absorbed by Shields . | . . . Core Remaining (%) 100 | 100 . . Volleys Fired 96 | 3 72 21 Largest 2 | 2 2 2 Hottest 70 | 60 70 70 Shots Fired 191 | 6 144 41 Gun 191 | 6 144 41 Cannon . | . . . Launcher . | . . . Special . | . . . Kinetic 96 | 3 72 21 Thermal 66 | . 46 20 Explosive . | . . . Electromagnetic 29 | 3 26 . Robot Hit Streak 14 | 2 14 10 Robot Miss Streak 3 | 1 2 3 Penetration Max . | . . . Secondary Targets 3 | . . 3 Max Gunslinging Chain 1 | . . 1 Shots Hit Robots 127 | 3 103 21 Core Hits 58 | 3 37 18 Critical Kills . | . . . Critical Parts Destroyed 1 | . 1 . Critical Strikes 9 | . 6 3 Burn 6 | . 3 3 Destroy 1 | . 1 . Corrupt 2 | . 2 . Melee Attacks . | . . . Impact . | . . . Slashing . | . . . Piercing . | . . . Sneak Attacks . | . . . Combat Hostiles . | . . . Follow-up Attacks . | . . . Damage Inflicted 1462 | 42 1189 231 Guns 1462 | 42 1189 231 Cannons . | . . . Explosions . | . . . Melee . | . . . Ramming . | . . . Kinetic 553 | . 460 93 Thermal 554 | . 416 138 Explosive . | . . . Electromagnetic 355 | 42 313 . Impact . | . . . Slashing . | . . . Piercing . | . . . Highest Corruption 2 | . . 2 Average Corruption 2 | . . 2 Corruption Purged . | . . . Corruption Blocked . | . . . Overload Shots . | . . . Overflow Damage . | . . . Projectiles . | . . . Explosions . | . . . Melee . | . . . Knockbacks . | . . . Impact . | . . . Kinetic . | . . . Secondary . | . . . Self-Inflicted Damage . | . . . Shots . | . . . Rammed . | . . . Targets Rammed . | . . . Kicked . | . . . Crushed . | . . . Highest Temperature 388 | . 388 123 Average Temperature 79 | . 85 55 Received Heat Transfer 357 | . 357 . Siege Activations . | . . . Robots Corrupted 1 | . 1 . Combat Hostiles 1 | . 1 . Parts Fried 1 | . 1 . Impact Corruptions . | . . . Robots Melted 1 | . 1 . Combat Hostiles 1 | . 1 . Parts Melted 2 | . 2 . Heat Transferred 2072 | . 1443 629 Parts Sabotaged . | . . . Parts Stolen . | . . . Parts Stripped . | . . . Power Chain Reactions . | . . . Alert | -11 -10 -10 ------- Run | Yrd Mat Min Peak Influence 220 | 10 220 70 Initial 20 | . 6 20 Average 83 | 5 88 55 Maximum Alert Level 1 | . 1 . Low Security (%) 96 | 100 96 100 Level 1 3 | . 3 . Level 2 . | . . . Level 3 . | . . . Level 4 . | . . . Level 5 . | . . . High Security . | . . . Max Security . | . . . Squads Dispatched 2 | . 2 . Investigation . | . . . Extermination . | . . . Reinforcement 2 | . 2 . Assault . | . . . Garrison . | . . . Intercept . | . . . Searches Triggered . | . . . Construction Impeded . | . . . Haulers Reinforced . | . . . Active Scanning Responses . | . . . Cargo Convoy Interrupts . | . . . Stealth | -11 -10 -10 --------- Run | Yrd Mat Min Distress Signals 4 | . 4 . Communications Jammed . | . . . Distress Signals . | . . . Times Spotted 45 | . 28 17 Peak Tracking Total 6 | . 3 6 Tactical Retreats 1 | . . 1 Traps | -11 -10 -10 ------- Run | Yrd Mat Min Traps Triggered 1 | . 1 . Indirectly . | . . . Trap Hack Attempts . | . . . Triggered . | . . . Disarmed . | . . . Reprogrammed . | . . . Reused . | . . . Traps Extracted . | . . . Installed . | . . . Triggered . | . . . Machines | -11 -10 -10 ---------- Run | Yrd Mat Min Machines Disabled . | . . . Max in Single Turn . | . . . Machines Repaired . | . . . Machines Dismantled . | . . . Machines Sabotaged . | . . . Overloaded Fab Kills . | . . . Hacking | -11 -10 -10 --------- Run | Yrd Mat Min Machines Accessed 7 | . 7 . Terminals 6 | . 6 . Fabricators . | . . . Repair Stations . | . . . Recycling Units 1 | . 1 . Scanalyzers . | . . . Garrison Access . | . . . Total Hacks 22 | . 22 . Successful 12 | . 12 . Failed 10 | . 10 . Catastrophic 1 | . 1 . Database Lockouts . | . . . Manual 15 | . 15 . Terminals 21 | . 21 . Fabricators . | . . . Repair Stations . | . . . Recycling Units 1 | . 1 . Scanalyzers . | . . . Garrison Access . | . . . Terminal Hacks 8 | . 8 . Robot Analysis 1 | . 1 . Terminal Index 1 | . 1 . Repair Station Index 1 | . 1 . Recycling Unit Index 1 | . 1 . Scanalyzer Index 1 | . 1 . Hauler Manifests 1 | . 1 . Zone Layout 2 | . 2 . Fabricator Hacks . | . . . Repair Station Hacks . | . . . Recycling Unit Hacks . | . . . Scanalyzer . | . . . Garrison Access Hacks . | . . . Unauthorized Hacks 4 | . 4 . Terminals 4 | . 4 . Botnet 3 | . 3 . Operators 1 | . 1 . Fabricators . | . . . Repair Stations . | . . . Recycling Units . | . . . Scanalyzers . | . . . Garrison Access . | . . . Data Cores Recovered . | . . . Used . | . . . Hacking Detections 6 | . 6 . Full Trace Events . | . . . Feedback Events . | . . . Feedback Blocked . | . . . Robot Schematics Acquired . | . . . Robots Built . | . . . Authchips . | . . . Time . | . . . Total Robot Build Rating . | . . . Part Schematics Acquired . | . . . Parts Built . | . . . Authchips . | . . . Time . | . . . Total Part Build Rating . | . . . Parts Repaired . | . . . Time . | . . . Parts Recycled . | . . . Recycled Matter . | . . . Retrieved Matter . | . . . Retrieved Components . | . . . Parts Scanalyzed . | . . . Part Schematics Acquired . | . . . Parts Damaged . | . . . Bothacking | -11 -10 -10 ------------ Run | Yrd Mat Min Used RIF Installer . | . . . Robots Hacked . | . . . Non-combat . | . . . Combat . | . . . Robot Hacks Applied . | . . . Relay Couplers Released . | . . . Fabnet Peak Effective % . | . . . Robots Rewired . | . . . Allies Hacked . | . . . Hacks Repelled . | . . . Allies | -11 -10 -10 -------- Run | Yrd Mat Min Total Allies . | . . . Largest Group . | . . . Highest-Rated Group . | . . . Highest-Rated Ally . | . . . Total Orders . | . . . Ally Attacks . | . . . Total Damage . | . . . Kills . | . . . Allies Corrupted . | . . . Allies Melted . | . . . Intel | -11 -10 -10 ------- Run | Yrd Mat Min Robot Analysis Total 1 | . 1 . Derelict Logs Recovered . | . . . Drone Launches . | . . . Drone Recoveries . | . . . Exploration | -11 -10 -10 ------------- Run | Yrd Mat Min Turns Passed 1895 | 68 1712 115 Spaces Moved 769 | 24 716 29 Core . | . . . Treads 552 | . 523 29 Legs 217 | 24 193 . Wheels . | . . . Hover . | . . . Flight . | . . . Fastest Speed 120 | 120 120 160 Average Speed 149 | 120 149 184 Slowest Speed 240 | 120 160 240 Overloaded Moves . | . . . Propulsion Burnouts . | . . . Robots Hopped . | . . . Cave-ins Triggered . | . . . Exploration Rate (%) 37 | 4 98 9 Regions Visited 2 Branch Regions 1 Pre-discovered Areas . | . . . Known Exits Taken . | . . . Unknown Exits Taken 2 | 1 1 . Scrap Searched . | . . . Spaces Dug . | . . . Terrain Destroyed . | . . . Melee . | . . . Projectile . | . . . AOE . | . . . Terrain Rammed . | . . . Walls Destroyed . | . . . Machines Disabled . | . . . Actions | -11 -10 -10 --------- Run | Yrd Mat Min Total 1336 | 58 1225 53 Wait 433 | 24 406 3 Move 767 | 23 715 29 Hop . | . . . Pick Up 16 | 4 12 . Fast Attach 6 | 1 5 . Attach 1 | . 1 . Detach . | . . . Swap 4 | . 4 . Drop 13 | 3 10 . Fire 96 | 3 72 21 Melee . | . . . Ram . | . . . Kick . | . . . Crush . | . . . Escape Stasis . | . . . Rewire . | . . . Trap . | . . . Miscellaneous . | . . . Route ------- -11/Scrapyard -10/Materials (discovered 5 exits: [*Mat x3] / [*Min] / [*Sub]) -10/Mines (discovered 1 exit: [*Mat]) History --------- Turn | Location | Event 1 | -11/Scrapyard | Discovered new exit (range 2) 69 | -11/Scrapyard | Entered Materials 303 | -10/Materials | Build established: Mutant 360 | -10/Materials | Discovered new exit (range 15) 576 | -10/Materials | Discovered new exit (range 7) 1008 | -10/Materials | Discovered new exit (range 15) 1076 | -10/Materials | Discovered new exit (range 6) 1582 | -10/Materials | Discovered new exit (range 16) 1781 | -10/Materials | Entered Mines 1782 | -10/Mines | Assembled infested the area 1790 | -10/Mines | Core integrity fell below 50% 1839 | -10/Mines | Discovered new exit (range 10) 1858 | -10/Mines | Core integrity fell below 20% 1896 | -10/Mines | Destroyed by as-17638 with Assembled Blade Last Messages --------------- 01828_ U-05 Engineer builds a Wall. 01835_ R-06 Scavenger system terminally corrupted. 01839_ EXIT=FOUND 01844_ as-11877 suffers critical hit (Burn). 01844_ as-11877 destroyed. 01851_ Lgt. Treads destroyed. 01851_ System corrupted by crushing effect (+2). 01853_ as-21237 suffers critical hit (Burn). 01858_ as-21237 destroyed. 01858_ Switching to secondary target: as-98369. 01864_ as-98369 destroyed. 01867_ Acquired 8 matter. 01881_ U-05 Engineer builds a Wall. 01882_ as-04370 sneak attacks. 01884_ U-05 Engineer system corrupted by crushing effect. 01884_ U-05 Engineer destroyed. 01886_ as-04370 destroyed. 01888_ Lgt. Armor Plating destroyed. 01891_ Med. Laser destroyed. 01893_ Lgt. Treads destroyed. Map ----- +----------------------------------------------------+ | ?????????????????????????????????????? | | ?????????????????????????????????????? | | ?????????????????????????????????????? | | ?????????????????????????????????????? | | ?????????????????????????????????????? | | ?????????????????????????????????????? | | ?????????????????????????????????????? | | ?????????????????????????????????????? | | ?????????????????????????????????????? | | ?????????????????????????????????????? | | ?????????????????????????????????????? | | ??????????????????????????????? ?????? | | ??????????????????????#########!?????? | | ??????????????????????# ? |%??????? | | ??????????????????????# ###% #??????? | | ??????????????????##### # #??????? | | ??????????????????? ##% ##?????? | | ??????????????????????# = ##????? | | ??????????????????????# %= # ####??? | | ??????????????????????# #] # # % ##?? | | ??????????????????????## ## #?? | | ??????????????????????# # %# #?? | | ?????????????????????####% =# [ #?? | | ?????????????????????#% %* ## [ * ##?? | | ?????????????????????# #a### ##?? | | ?????????????????????#%# @ ###??? | | ?????????????????????# # # #???? | | ?????????????????????#%#%# ####???? | | ?????????????????????# ## ##??????? | | ????????????????????# #####???????? | | ????????????????????# #??????????? | | ???????????????????? """ ?????????? | | ??????????????????? """ ????????? | | ?????????????????? """ ???????? | | ?????????????????? ##??????? | | ?????????????????? ## < ##???????? | | ????????????????? #?## ? #????????? | | ???????????????? #??????? ? ????????? | | ????????????????????????? ?? ????????? | | ?????????????????????????????????????? | | ?????????????????????????????????????? | | ?????????????????????????????????????? | | ?????????????????????????????????????? | | ?????????????????????????????????????? | | ?????????????????????????????????????? | | ?????????????????????????????????????? | | ?????????????????????????????????????? | | ?????????????????????????????????????? | | ?????????????????????????????????????? | | ?????????????????????????????????????? | +----------------------------------------------------+ Best States ------------- Heat Dissipation 25 Energy Generation 10 Energy Capacity 125 Matter Stores 300 Matter Capacity 300 Sight Range 16 Terrain Scan Density 10 Armor Coverage 150 Evasion (%) 55 Recoil Reduction 2 Item Schematics ----------------- None Robot Schematics ------------------ None Fabricated ------------ Nothing Alien Tech Used ----------------- None Achievements -------------- None Challenges ------------ None Game ------ Seed ImpactAssemblyFacilitator Manual? 0 Play Time 00:15:45 Cumulative 60.4 hours Start 2024.04.28 @ 09:01:27 End 2024.04.28 @ 09:19:24 Sessions 1 Manual Loads 0 Difficulty Rogue Special Mode None Game No. 40 Rogue 40 Adventurer 0 Explorer 0 Win Type - Total 1 Types 1/0/0/0/0/0/0/0/0 Lore% 51 Gallery% 39 Achievement% 39 Wizard Run 0 Options --------- Layout 0 ASCII 0 Keyboard 0 Movement Mouse Keybinds 0 Fullscreen 1 Font 18/SmallcapsGlow Map View 76x50 Zoom Use 0% Tactical HUD 1 Map Filters NONE Filters NONE Steam 1 RUN: e6858f7a-11f7-49cc-9282-a00229e67059